[Event "Titled Tuesday Blitz November 14 Early 2023"]
[White "Oganian, Miran"]
[Black "Jumanov, Elbek"]
[WhiteFideId "4122488"]
[BlackFideId "14202905"]
[WhiteElo "2776"]
[BlackElo "2428"]
[Result "0-1"]
[Round "1"]
[TimeControl "180+1"]
[Date "2023.11.14"]
[WhiteClock "0:00:53"]
[BlackClock "0:00:15"]
[Board "100"]

1. e4 {[%clk 0:02:59]}  c5 {[%clk 0:02:59]} 2. Nf3 {[%clk 0:02:58]}  e6 {[%clk 0:02:59]} 3. c3 {[%clk 0:02:58]}  d5 {[%clk 0:02:55]} 4. exd5 {[%clk 0:02:57]}  Qxd5 {[%clk 0:02:55]} 5. d4 {[%clk 0:02:57]}  Nc6 {[%clk 0:02:54]} 6. Be2 {[%clk 0:02:54]}  Nf6 {[%clk 0:02:53]} 7. O-O {[%clk 0:02:54]}  Be7 {[%clk 0:02:50]} 8. Be3 {[%clk 0:02:52]}  cxd4 {[%clk 0:02:48]} 9. Nxd4 {[%clk 0:02:52]}  Nxd4 {[%clk 0:02:42]} 10. Bxd4 {[%clk 0:02:53]}  O-O {[%clk 0:02:41]} 11. Bf3 {[%clk 0:02:52]}  Qd7 {[%clk 0:02:35]} 12. Qe2 {[%clk 0:02:51]}  Nd5 {[%clk 0:02:31]} 13. g3 {[%clk 0:02:50]}  Bf6 {[%clk 0:02:28]} 14. Bxf6 {[%clk 0:02:47]}  Nxf6 {[%clk 0:02:27]} 15. Nd2 {[%clk 0:02:48]}  Rb8 {[%clk 0:02:25]} 16. Rad1 {[%clk 0:02:47]}  Qc7 {[%clk 0:02:23]} 17. Ne4 {[%clk 0:02:47]}  Nxe4 {[%clk 0:02:18]} 18. Bxe4 {[%clk 0:02:48]}  b6 {[%clk 0:02:17]} 19. Rd4 {[%clk 0:02:46]}  e5 {[%clk 0:02:04]} 20. Rd2 {[%clk 0:02:41]}  Be6 {[%clk 0:02:04]} 21. Rfd1 {[%clk 0:02:38]}  Rbd8 {[%clk 0:01:59]} 22. Qe3 {[%clk 0:02:35]}  Bxa2 {[%clk 0:01:49]} 23. c4 {[%clk 0:02:29]}  Rxd2 {[%clk 0:01:30]} 24. Qxd2 {[%clk 0:02:29]}  Qxc4 {[%clk 0:01:27]} 25. Bd3 {[%clk 0:02:23]}  Qe6 {[%clk 0:01:19]} 26. Ra1 {[%clk 0:02:08]}  a5 {[%clk 0:00:58]} 27. b4 {[%clk 0:02:07]}  Bd5 {[%clk 0:00:56]} 28. bxa5 {[%clk 0:02:07]}  bxa5 {[%clk 0:00:57]} 29. Rxa5 {[%clk 0:02:07]}  Ba8 {[%clk 0:00:43]} 30. Qc2 {[%clk 0:01:46]}  Rc8 {[%clk 0:00:31]} 31. Bf5 {[%clk 0:01:41]}  Qxf5 {[%clk 0:00:20]} 32. Qd1 {[%clk 0:00:53]}  Qf3 {[%clk 0:00:16]} 33. Qxf3 {[%clk 0:00:52]}  Bxf3 {[%clk 0:00:16]} 34. Ra1 {[%clk 0:00:53]}  f6 {[%clk 0:00:16]} 35. Rc1 {[%clk 0:00:53]}  Rxc1# {[%clk 0:00:15]} 0-1


[Site "https://www.chess.com"]

[Event "Titled Tuesday Blitz November 14 Early 2023"]
[White "Sokolovsky, Yahli"]
[Black "Kassimov, Baurzhan"]
[WhiteFideId "2820242"]
[BlackFideId "13704800"]
[WhiteElo "2770"]
[BlackElo "2424"]
[Result "1-0"]
[Round "1"]
[TimeControl "180+1"]
[Date "2023.11.14"]
[WhiteClock "0:00:42"]
[BlackClock "0:00:18"]
[Board "102"]

1. b3 {[%clk 0:03:00]}  Nf6 {[%clk 0:02:56]} 2. Bb2 {[%clk 0:03:01]}  e6 {[%clk 0:02:57]} 3. e3 {[%clk 0:03:01]}  c5 {[%clk 0:02:55]} 4. Nf3 {[%clk 0:03:02]}  Nc6 {[%clk 0:02:55]} 5. d4 {[%clk 0:03:02]}  d5 {[%clk 0:02:54]} 6. Bd3 {[%clk 0:03:02]}  Be7 {[%clk 0:02:54]} 7. Nbd2 {[%clk 0:03:02]}  O-O {[%clk 0:02:54]} 8. O-O {[%clk 0:03:02]}  b6 {[%clk 0:02:53]} 9. Ne5 {[%clk 0:03:02]}  Nxe5 {[%clk 0:02:43]} 10. dxe5 {[%clk 0:03:02]}  Nd7 {[%clk 0:02:44]} 11. c4 {[%clk 0:03:02]}  Bb7 {[%clk 0:02:43]} 12. cxd5 {[%clk 0:02:59]}  Bxd5 {[%clk 0:02:42]} 13. Ne4 {[%clk 0:02:50]}  Qc7 {[%clk 0:02:36]} 14. Qh5 {[%clk 0:02:17]}  g6 {[%clk 0:02:23]} 15. Qh6 {[%clk 0:02:18]}  Rfd8 {[%clk 0:02:19]} 16. Ng5 {[%clk 0:01:57]}  Nf8 {[%clk 0:02:18]} 17. Rad1 {[%clk 0:01:47]}  a6 {[%clk 0:02:13]} 18. f4 {[%clk 0:00:52]}  b5 {[%clk 0:02:08]} 19. e4 {[%clk 0:00:47]}  Bc6 {[%clk 0:01:47]} 20. f5 {[%clk 0:00:47]}  Bxg5 {[%clk 0:01:39]} 21. Qxg5 {[%clk 0:00:48]}  c4 {[%clk 0:01:35]} 22. f6 {[%clk 0:00:42]}  cxd3 {[%clk 0:00:18]} 23. Qh6 {[%clk 0:00:42]} 1-0


[Site "https://www.chess.com"]

[Event "Titled Tuesday Blitz November 14 Early 2023"]
[White "LangesNasenhaar"]
[Black "Budisavljevic, Luka"]
[BlackFideId "960047"]
[WhiteElo "2423"]
[BlackElo "2768"]
[Result "1/2-1/2"]
[Round "1"]
[TimeControl "180+1"]
[Date "2023.11.14"]
[WhiteClock "0:00:05"]
[BlackClock "0:00:12"]
[Board "103"]

1. d4 {[%clk 0:03:00]}  Nf6 {[%clk 0:02:59]} 2. Nc3 {[%clk 0:03:01]}  e6 {[%clk 0:02:57]} 3. Bf4 {[%clk 0:03:01]}  d5 {[%clk 0:02:57]} 4. Nb5 {[%clk 0:03:00]}  Na6 {[%clk 0:02:57]} 5. e3 {[%clk 0:03:00]}  c6 {[%clk 0:02:54]} 6. Nc3 {[%clk 0:03:01]}  Bd6 {[%clk 0:02:54]} 7. Qf3 {[%clk 0:02:55]}  b5 {[%clk 0:02:51]} 8. Bxd6 {[%clk 0:02:27]}  Qxd6 {[%clk 0:02:52]} 9. Qg3 {[%clk 0:02:27]}  Qxg3 {[%clk 0:02:50]} 10. hxg3 {[%clk 0:02:27]}  Nc7 {[%clk 0:02:46]} 11. Bd3 {[%clk 0:02:25]}  h6 {[%clk 0:02:42]} 12. Nf3 {[%clk 0:02:24]}  b4 {[%clk 0:02:35]} 13. Na4 {[%clk 0:02:23]}  Ba6 {[%clk 0:02:35]} 14. Ne5 {[%clk 0:02:20]}  Bb5 {[%clk 0:02:35]} 15. Nc5 {[%clk 0:02:16]}  Ke7 {[%clk 0:02:24]} 16. Bxb5 {[%clk 0:02:13]}  cxb5 {[%clk 0:02:24]} 17. Nc6+ {[%clk 0:02:09]}  Kd6 {[%clk 0:02:24]} 18. Nxb4 {[%clk 0:02:09]}  Ne4 {[%clk 0:02:23]} 19. Nbd3 {[%clk 0:02:06]}  f6 {[%clk 0:02:15]} 20. g4 {[%clk 0:01:49]}  Rac8 {[%clk 0:02:05]} 21. f3 {[%clk 0:01:47]}  Nxc5 {[%clk 0:02:01]} 22. Nxc5 {[%clk 0:01:46]}  e5 {[%clk 0:01:55]} 23. c3 {[%clk 0:01:44]}  Na8 {[%clk 0:01:48]} 24. Kd2 {[%clk 0:01:38]}  Nb6 {[%clk 0:01:48]} 25. b3 {[%clk 0:01:38]}  a5 {[%clk 0:01:47]} 26. Nb7+ {[%clk 0:01:34]}  Kc7 {[%clk 0:01:46]} 27. Nxa5 {[%clk 0:01:31]}  Ra8 {[%clk 0:01:42]} 28. b4 {[%clk 0:01:31]}  Rhe8 {[%clk 0:01:42]} 29. Rhe1 {[%clk 0:01:24]}  Re6 {[%clk 0:01:35]} 30. f4 {[%clk 0:01:18]}  g6 {[%clk 0:01:29]} 31. Rh1 {[%clk 0:01:12]}  Rh8 {[%clk 0:01:20]} 32. fxe5 {[%clk 0:01:06]}  fxe5 {[%clk 0:01:20]} 33. Raf1 {[%clk 0:01:06]}  Rh7 {[%clk 0:01:19]} 34. dxe5 {[%clk 0:00:46]}  Rxe5 {[%clk 0:01:20]} 35. Rf6 {[%clk 0:00:46]}  Nc4+ {[%clk 0:01:08]} 36. Nxc4 {[%clk 0:00:46]}  dxc4 {[%clk 0:01:09]} 37. Rxg6 {[%clk 0:00:34]}  Rd7+ {[%clk 0:01:10]} 38. Ke2 {[%clk 0:00:34]}  Rd3 {[%clk 0:01:10]} 39. Rhxh6 {[%clk 0:00:29]}  Rdxe3+ {[%clk 0:01:06]} 40. Kf2 {[%clk 0:00:29]}  Re7 {[%clk 0:01:04]} 41. Rc6+ {[%clk 0:00:26]}  Kd7 {[%clk 0:01:05]} 42. Rhd6+ {[%clk 0:00:20]}  Ke8 {[%clk 0:01:05]} 43. g5 {[%clk 0:00:13]}  Rxc3 {[%clk 0:00:55]} 44. g6 {[%clk 0:00:13]}  Kf8 {[%clk 0:00:55]} 45. Rd5 {[%clk 0:00:08]}  Ra3 {[%clk 0:00:22]} 46. Rxb5 {[%clk 0:00:07]}  Rxa2+ {[%clk 0:00:22]} 47. Kg3 {[%clk 0:00:08]}  Kg7 {[%clk 0:00:14]} 48. Rbc5 {[%clk 0:00:08]}  Ree2 {[%clk 0:00:14]} 49. Rxc4 {[%clk 0:00:06]}  Rxg2+ {[%clk 0:00:14]} 50. Kf4 {[%clk 0:00:07]}  Rae2 {[%clk 0:00:12]} 51. b5 {[%clk 0:00:05]}  Rgf2+ {[%clk 0:00:12]} 52. Kg5 {[%clk 0:00:05]}  Re5+ {[%clk 0:00:11]} 53. Kg4 {[%clk 0:00:05]}  Rxb5 {[%clk 0:00:11]} 54. Rc7+ {[%clk 0:00:04]}  Kxg6 {[%clk 0:00:10]} 55. R7c6+ {[%clk 0:00:05]}  Rf6 {[%clk 0:00:10]} 56. Rxf6+ {[%clk 0:00:05]}  Kxf6 {[%clk 0:00:11]} 57. Rf4+ {[%clk 0:00:05]}  Ke6 {[%clk 0:00:11]} 58. Rc4 {[%clk 0:00:06]}  Re5 {[%clk 0:00:10]} 59. Rc1 {[%clk 0:00:06]}  Kd5 {[%clk 0:00:10]} 60. Rd1+ {[%clk 0:00:06]}  Ke6 {[%clk 0:00:11]} 61. Rc1 {[%clk 0:00:06]}  Rd5 {[%clk 0:00:11]} 62. Re1+ {[%clk 0:00:06]}  Re5 {[%clk 0:00:11]} 63. Rxe5+ {[%clk 0:00:05]}  Kxe5 {[%clk 0:00:12]} 1/2-1/2


[Site "https://www.chess.com"]

[Event "Titled Tuesday Blitz November 14 Early 2023"]
[White "Korchmar, Vasiliy"]
[Black "Preobrazhenska_D2011"]
[WhiteFideId "24131750"]
[WhiteElo "2763"]
[BlackElo "2420"]
[Result "1-0"]
[Round "1"]
[TimeControl "180+1"]
[Date "2023.11.14"]
[WhiteClock "0:01:01"]
[BlackClock "0:00:06"]
[Board "106"]

1. e4 {[%clk 0:03:00]}  c5 {[%clk 0:02:59]} 2. d4 {[%clk 0:03:00]}  cxd4 {[%clk 0:02:59]} 3. Qxd4 {[%clk 0:03:01]}  Nc6 {[%clk 0:02:56]} 4. Qd3 {[%clk 0:03:01]}  d6 {[%clk 0:02:55]} 5. Nc3 {[%clk 0:03:02]}  Nf6 {[%clk 0:02:55]} 6. Nf3 {[%clk 0:03:02]}  g6 {[%clk 0:02:39]} 7. Be2 {[%clk 0:03:01]}  Bg7 {[%clk 0:02:39]} 8. O-O {[%clk 0:03:02]}  O-O {[%clk 0:02:39]} 9. Nd5 {[%clk 0:03:03]}  Nd7 {[%clk 0:02:32]} 10. c3 {[%clk 0:03:02]}  b6 {[%clk 0:02:30]} 11. Bg5 {[%clk 0:03:00]}  Bb7 {[%clk 0:02:17]} 12. Qe3 {[%clk 0:03:01]}  Re8 {[%clk 0:02:15]} 13. Rad1 {[%clk 0:03:00]}  Qb8 {[%clk 0:02:09]} 14. Bh6 {[%clk 0:02:53]}  Bh8 {[%clk 0:02:09]} 15. h4 {[%clk 0:02:50]}  Nc5 {[%clk 0:02:00]} 16. h5 {[%clk 0:02:46]}  e6 {[%clk 0:01:56]} 17. Nf4 {[%clk 0:02:36]}  Ne5 {[%clk 0:01:48]} 18. Ng5 {[%clk 0:02:27]}  Qc8 {[%clk 0:01:23]} 19. Rxd6 {[%clk 0:02:17]}  Qc7 {[%clk 0:01:16]} 20. Rfd1 {[%clk 0:02:16]}  Rad8 {[%clk 0:01:05]} 21. R6d2 {[%clk 0:01:53]}  Bf6 {[%clk 0:00:54]} 22. b4 {[%clk 0:01:31]}  Rxd2 {[%clk 0:00:42]} 23. Rxd2 {[%clk 0:01:31]}  Bxg5 {[%clk 0:00:38]} 24. Bxg5 {[%clk 0:01:28]}  Nxe4 {[%clk 0:00:38]} 25. Bh6 {[%clk 0:01:13]}  Nxd2 {[%clk 0:00:34]} 26. Qxd2 {[%clk 0:01:14]}  Rd8 {[%clk 0:00:30]} 27. Qe3 {[%clk 0:01:14]}  Qc6 {[%clk 0:00:28]} 28. Qxe5 {[%clk 0:01:10]}  f6 {[%clk 0:00:11]} 29. Qxf6 {[%clk 0:01:09]}  Qd7 {[%clk 0:00:09]} 30. hxg6 {[%clk 0:01:07]}  hxg6 {[%clk 0:00:07]} 31. Nxg6 {[%clk 0:01:03]}  Re8 {[%clk 0:00:06]} 32. Qh8+ {[%clk 0:01:01]}  Kf7 {[%clk 0:00:06]} 33. Qg7# {[%clk 0:01:01]} 1-0


[Site "https://www.chess.com"]

[Event "Titled Tuesday Blitz November 14 Early 2023"]
[White "Yeritsyan, Hayk"]
[Black "Sattarov, Bobir"]
[WhiteFideId "13307320"]
[BlackFideId "14203081"]
[WhiteElo "2418"]
[BlackElo "2763"]
[Result "0-1"]
[Round "1"]
[TimeControl "180+1"]
[Date "2023.11.14"]
[WhiteClock "0:00:08"]
[BlackClock "0:01:01"]
[Board "107"]

1. d4 {[%clk 0:03:00]}  Nf6 {[%clk 0:02:59]} 2. c4 {[%clk 0:02:54]}  c5 {[%clk 0:02:57]} 3. d5 {[%clk 0:02:53]}  g6 {[%clk 0:02:58]} 4. Nc3 {[%clk 0:02:52]}  Bg7 {[%clk 0:02:57]} 5. e4 {[%clk 0:02:46]}  d6 {[%clk 0:02:58]} 6. Bd3 {[%clk 0:02:45]}  O-O {[%clk 0:02:57]} 7. Nge2 {[%clk 0:02:46]}  e6 {[%clk 0:02:56]} 8. O-O {[%clk 0:02:44]}  exd5 {[%clk 0:02:56]} 9. cxd5 {[%clk 0:02:45]}  Nbd7 {[%clk 0:02:51]} 10. a4 {[%clk 0:02:39]}  a6 {[%clk 0:02:43]} 11. h3 {[%clk 0:02:34]}  Rb8 {[%clk 0:02:39]} 12. Bg5 {[%clk 0:02:23]}  Qc7 {[%clk 0:02:39]} 13. Ng3 {[%clk 0:02:15]}  c4 {[%clk 0:02:35]} 14. Bc2 {[%clk 0:02:11]}  b5 {[%clk 0:02:36]} 15. axb5 {[%clk 0:02:12]}  axb5 {[%clk 0:02:37]} 16. Qd2 {[%clk 0:02:07]}  Re8 {[%clk 0:02:32]} 17. Bh6 {[%clk 0:02:00]}  Bh8 {[%clk 0:02:18]} 18. Rae1 {[%clk 0:01:45]}  b4 {[%clk 0:02:13]} 19. Nce2 {[%clk 0:01:43]}  Ba6 {[%clk 0:02:06]} 20. Ra1 {[%clk 0:01:31]}  Nc5 {[%clk 0:01:59]} 21. Qf4 {[%clk 0:01:23]}  c3 {[%clk 0:01:41]} 22. bxc3 {[%clk 0:01:19]}  b3 {[%clk 0:01:41]} 23. Bb1 {[%clk 0:01:18]}  b2 {[%clk 0:01:28]} 24. Ra3 {[%clk 0:01:16]}  Bxe2 {[%clk 0:01:24]} 25. Nxe2 {[%clk 0:01:13]}  Nxd5 {[%clk 0:01:15]} 26. exd5 {[%clk 0:01:01]}  Rxe2 {[%clk 0:01:16]} 27. Rd1 {[%clk 0:00:43]}  Qe7 {[%clk 0:01:07]} 28. Kf1 {[%clk 0:00:22]}  Re8 {[%clk 0:01:02]} 29. g3 {[%clk 0:00:12]}  Re1+ {[%clk 0:01:00]} 30. Rxe1 {[%clk 0:00:12]}  Qxe1+ {[%clk 0:01:01]} 31. Kg2 {[%clk 0:00:12]}  Qxb1 {[%clk 0:01:02]} 32. Ra7 {[%clk 0:00:08]}  Qe4+ {[%clk 0:01:01]} 33. Qxe4 {[%clk 0:00:09]}  Nxe4 {[%clk 0:01:02]} 34. Rb7 {[%clk 0:00:08]}  Bxc3 {[%clk 0:01:01]} 0-1


[Site "https://www.chess.com"]

[Event "Titled Tuesday Blitz November 14 Early 2023"]
[White "Nigmatov, Ortik"]
[Black "PoXerStar"]
[WhiteFideId "14202131"]
[WhiteElo "2761"]
[BlackElo "2417"]
[Result "1-0"]
[Round "1"]
[TimeControl "180+1"]
[Date "2023.11.14"]
[WhiteClock "0:01:16"]
[BlackClock "0:00:10"]
[Board "108"]

1. e4 {[%clk 0:03:00]}  c6 {[%clk 0:02:55]} 2. d4 {[%clk 0:03:00]}  d5 {[%clk 0:02:56]} 3. e5 {[%clk 0:03:00]}  Bf5 {[%clk 0:02:57]} 4. Nf3 {[%clk 0:03:00]}  e6 {[%clk 0:02:57]} 5. Be2 {[%clk 0:02:59]}  c5 {[%clk 0:02:57]} 6. Be3 {[%clk 0:02:58]}  Qb6 {[%clk 0:02:57]} 7. Nc3 {[%clk 0:02:44]}  Nc6 {[%clk 0:02:57]} 8. O-O {[%clk 0:02:40]}  Qxb2 {[%clk 0:02:51]} 9. Nb5 {[%clk 0:02:38]}  c4 {[%clk 0:02:47]} 10. Nc7+ {[%clk 0:02:36]}  Kd8 {[%clk 0:02:32]} 11. Nxa8 {[%clk 0:02:36]}  Qxc2 {[%clk 0:02:29]} 12. Qxc2 {[%clk 0:02:21]}  Bxc2 {[%clk 0:02:29]} 13. Rfc1 {[%clk 0:02:21]}  Bg6 {[%clk 0:02:29]} 14. a4 {[%clk 0:02:11]}  Na5 {[%clk 0:02:21]} 15. Bd1 {[%clk 0:01:58]}  Kc8 {[%clk 0:01:48]} 16. Bd2 {[%clk 0:01:55]}  Nc6 {[%clk 0:01:48]} 17. a5 {[%clk 0:01:53]}  Kb8 {[%clk 0:01:45]} 18. Nb6 {[%clk 0:01:53]}  axb6 {[%clk 0:01:45]} 19. axb6 {[%clk 0:01:54]}  Nge7 {[%clk 0:01:05]} 20. Ba4 {[%clk 0:01:45]}  Nc8 {[%clk 0:01:02]} 21. Bxc6 {[%clk 0:01:44]}  bxc6 {[%clk 0:01:02]} 22. Ra6 {[%clk 0:01:31]}  Kb7 {[%clk 0:00:59]} 23. Rca1 {[%clk 0:01:31]}  Be7 {[%clk 0:00:36]} 24. Ra7+ {[%clk 0:01:19]}  Nxa7 {[%clk 0:00:35]} 25. Rxa7+ {[%clk 0:01:19]}  Kxb6 {[%clk 0:00:34]} 26. Rxe7 {[%clk 0:01:20]}  Ra8 {[%clk 0:00:32]} 27. h3 {[%clk 0:01:19]}  Ra3 {[%clk 0:00:25]} 28. Bb4 {[%clk 0:01:18]}  Rb3 {[%clk 0:00:14]} 29. Bc5+ {[%clk 0:01:18]}  Ka6 {[%clk 0:00:14]} 30. Nd2 {[%clk 0:01:16]}  Rb2 {[%clk 0:00:12]} 31. Ra7+ {[%clk 0:01:16]}  Kb5 {[%clk 0:00:11]} 32. Rb7+ {[%clk 0:01:16]}  Ka4 {[%clk 0:00:10]} 33. Rxb2 {[%clk 0:01:16]} 1-0


[Site "https://www.chess.com"]

[Event "Titled Tuesday Blitz November 14 Early 2023"]
[White "Krzyzanowski, Marcin"]
[Black "Suspenser17"]
[WhiteFideId "1132199"]
[WhiteElo "2756"]
[BlackElo "2415"]
[Result "0-1"]
[Round "1"]
[TimeControl "180+1"]
[Date "2023.11.14"]
[WhiteClock "0:00:02"]
[BlackClock "0:00:11"]
[Board "110"]

1. e4 {[%clk 0:02:59]}  e5 {[%clk 0:02:59]} 2. d4 {[%clk 0:02:57]}  exd4 {[%clk 0:02:59]} 3. Nf3 {[%clk 0:02:56]}  Nc6 {[%clk 0:02:58]} 4. Bc4 {[%clk 0:02:55]}  Nf6 {[%clk 0:02:58]} 5. O-O {[%clk 0:02:55]}  Nxe4 {[%clk 0:02:57]} 6. Re1 {[%clk 0:02:56]}  d5 {[%clk 0:02:57]} 7. Bxd5 {[%clk 0:02:57]}  Qxd5 {[%clk 0:02:57]} 8. Nc3 {[%clk 0:02:57]}  Qd7 {[%clk 0:02:53]} 9. Nxe4 {[%clk 0:02:57]}  Be7 {[%clk 0:02:53]} 10. Bg5 {[%clk 0:02:57]}  O-O {[%clk 0:02:53]} 11. Bxe7 {[%clk 0:02:57]}  Qxe7 {[%clk 0:02:54]} 12. Nxd4 {[%clk 0:02:55]}  Bd7 {[%clk 0:02:54]} 13. c3 {[%clk 0:02:51]}  Rae8 {[%clk 0:02:48]} 14. Re3 {[%clk 0:02:43]}  Qd8 {[%clk 0:02:25]} 15. Nc5 {[%clk 0:01:35]}  Nxd4 {[%clk 0:02:11]} 16. Qxd4 {[%clk 0:01:31]}  Bc6 {[%clk 0:02:09]} 17. Rd1 {[%clk 0:01:26]}  Qg5 {[%clk 0:01:58]} 18. Rg3 {[%clk 0:01:25]}  Qh6 {[%clk 0:01:53]} 19. h3 {[%clk 0:01:18]}  g6 {[%clk 0:01:47]} 20. b4 {[%clk 0:01:16]}  Qg7 {[%clk 0:01:45]} 21. a4 {[%clk 0:01:14]}  Qxd4 {[%clk 0:01:43]} 22. Rxd4 {[%clk 0:01:15]}  Re1+ {[%clk 0:01:41]} 23. Kh2 {[%clk 0:01:14]}  b6 {[%clk 0:01:38]} 24. Na6 {[%clk 0:01:15]}  Re2 {[%clk 0:01:37]} 25. f3 {[%clk 0:01:04]}  Bxa4 {[%clk 0:01:33]} 26. Nxc7 {[%clk 0:01:04]}  Rc8 {[%clk 0:01:33]} 27. Nd5 {[%clk 0:01:04]}  Kg7 {[%clk 0:01:27]} 28. h4 {[%clk 0:00:57]}  Bb3 {[%clk 0:01:27]} 29. Nf4 {[%clk 0:00:55]}  Rc2 {[%clk 0:01:24]} 30. Nh5+ {[%clk 0:00:54]}  Kf8 {[%clk 0:01:21]} 31. Nf6 {[%clk 0:00:54]}  R8xc3 {[%clk 0:01:16]} 32. h5 {[%clk 0:00:45]}  Kg7 {[%clk 0:01:13]} 33. Rf4 {[%clk 0:00:35]}  Rc4 {[%clk 0:01:08]} 34. h6+ {[%clk 0:00:36]}  Kf8 {[%clk 0:01:05]} 35. Nxh7+ {[%clk 0:00:35]}  Ke7 {[%clk 0:01:05]} 36. Rgg4 {[%clk 0:00:30]}  a5 {[%clk 0:00:50]} 37. Ng5 {[%clk 0:00:26]}  f6 {[%clk 0:00:49]} 38. h7 {[%clk 0:00:24]}  Rc8 {[%clk 0:00:46]} 39. Re4+ {[%clk 0:00:24]}  Kd6 {[%clk 0:00:43]} 40. Rd4+ {[%clk 0:00:24]}  Kc6 {[%clk 0:00:40]} 41. Ne4 {[%clk 0:00:23]}  Rc7 {[%clk 0:00:34]} 42. Nxf6 {[%clk 0:00:21]}  Rc8 {[%clk 0:00:29]} 43. Rxg6 {[%clk 0:00:19]}  Rh8 {[%clk 0:00:26]} 44. bxa5 {[%clk 0:00:15]}  bxa5 {[%clk 0:00:26]} 45. Ne4+ {[%clk 0:00:11]}  Kb7 {[%clk 0:00:20]} 46. Rd7+ {[%clk 0:00:09]}  Kc8 {[%clk 0:00:19]} 47. Ra7 {[%clk 0:00:08]}  Kb8 {[%clk 0:00:16]} 48. Rag7 {[%clk 0:00:06]}  a4 {[%clk 0:00:15]} 49. Rg8+ {[%clk 0:00:06]}  Bxg8 {[%clk 0:00:14]} 50. Rxg8+ {[%clk 0:00:06]}  Rc8 {[%clk 0:00:15]} 51. Nf6 {[%clk 0:00:04]}  Rcxg8 {[%clk 0:00:12]} 52. Nxg8 {[%clk 0:00:02]}  Rxh7+ {[%clk 0:00:13]} 53. Kg1 {[%clk 0:00:02]}  a3 {[%clk 0:00:13]} 54. Kf2 {[%clk 0:00:03]}  a2 {[%clk 0:00:13]} 55. Nf6 {[%clk 0:00:03]}  Rf7 {[%clk 0:00:11]} 56. Ne4 {[%clk 0:00:03]}  a1=Q {[%clk 0:00:12]} 57. Kg3 {[%clk 0:00:03]}  Qe5+ {[%clk 0:00:12]} 58. Kf2 {[%clk 0:00:03]}  Rg7 {[%clk 0:00:12]} 59. g4 {[%clk 0:00:03]}  Qf4 {[%clk 0:00:12]} 60. Nc5 {[%clk 0:00:02]}  Rc7 {[%clk 0:00:11]} 61. Ne6 {[%clk 0:00:02]}  Rc2+ {[%clk 0:00:11]} 62. Ke1 {[%clk 0:00:02]}  Qd2+ {[%clk 0:00:11]} 0-1


[Site "https://www.chess.com"]

[Event "Titled Tuesday Blitz November 14 Early 2023"]
[White "Hayrapetyan, Hovik"]
[Black "Luong Phuong Hanh"]
[WhiteFideId "13302639"]
[BlackFideId "12401013"]
[WhiteElo "2743"]
[BlackElo "2408"]
[Result "1-0"]
[Round "1"]
[TimeControl "180+1"]
[Date "2023.11.14"]
[WhiteClock "0:00:17"]
[BlackClock "0:00:00"]
[Board "116"]

1. d4 {[%clk 0:02:52]}  Nf6 {[%clk 0:02:55]} 2. c4 {[%clk 0:02:52]}  g6 {[%clk 0:02:52]} 3. Nc3 {[%clk 0:02:43]}  d5 {[%clk 0:02:42]} 4. Qb3 {[%clk 0:02:32]}  dxc4 {[%clk 0:02:38]} 5. Qxc4 {[%clk 0:02:32]}  Bg7 {[%clk 0:02:37]} 6. e4 {[%clk 0:02:33]}  O-O {[%clk 0:02:36]} 7. Nf3 {[%clk 0:02:32]}  a6 {[%clk 0:02:36]} 8. Be2 {[%clk 0:02:25]}  b5 {[%clk 0:02:36]} 9. Qd3 {[%clk 0:02:24]}  c5 {[%clk 0:02:36]} 10. dxc5 {[%clk 0:02:09]}  Qc7 {[%clk 0:02:27]} 11. Be3 {[%clk 0:01:51]}  Bb7 {[%clk 0:02:25]} 12. O-O {[%clk 0:01:42]}  b4 {[%clk 0:02:24]} 13. Nd5 {[%clk 0:01:40]}  Nxd5 {[%clk 0:02:24]} 14. exd5 {[%clk 0:01:41]}  Bxb2 {[%clk 0:02:24]} 15. Rab1 {[%clk 0:01:39]}  Bc3 {[%clk 0:02:24]} 16. d6 {[%clk 0:01:29]}  exd6 {[%clk 0:02:24]} 17. cxd6 {[%clk 0:01:30]}  Qd7 {[%clk 0:02:22]} 18. Bd4 {[%clk 0:01:19]}  Bxd4 {[%clk 0:02:20]} 19. Qxd4 {[%clk 0:01:19]}  Nc6 {[%clk 0:02:20]} 20. Qb6 {[%clk 0:01:12]}  Rfb8 {[%clk 0:02:15]} 21. Rfd1 {[%clk 0:01:09]}  Qe6 {[%clk 0:01:43]} 22. Rd2 {[%clk 0:00:39]}  Ne5 {[%clk 0:01:39]} 23. Nxe5 {[%clk 0:00:21]}  Qxe5 {[%clk 0:01:39]} 24. Qxb4 {[%clk 0:00:18]}  Bxg2 {[%clk 0:01:29]} 25. Qxb8+ {[%clk 0:00:18]}  Rxb8 {[%clk 0:01:30]} 26. Rxb8+ {[%clk 0:00:18]}  Kg7 {[%clk 0:00:00]} 27. d7 {[%clk 0:00:17]} 1-0


[Site "https://www.chess.com"]

[Event "Titled Tuesday Blitz November 14 Early 2023"]
[White "Ron_Weasley_Chess"]
[Black "Arifarsky"]
[WhiteElo "2405"]
[BlackElo "2740"]
[Result "0-1"]
[Round "1"]
[TimeControl "180+1"]
[Date "2023.11.14"]
[WhiteClock "0:00:01"]
[BlackClock "0:00:11"]
[Board "119"]

1. Nf3 {[%clk 0:03:00]}  Nf6 {[%clk 0:02:44]} 2. g3 {[%clk 0:03:01]}  e6 {[%clk 0:02:44]} 3. Bg2 {[%clk 0:03:01]}  d5 {[%clk 0:02:45]} 4. O-O {[%clk 0:03:01]}  Be7 {[%clk 0:02:46]} 5. c4 {[%clk 0:02:59]}  O-O {[%clk 0:02:46]} 6. b3 {[%clk 0:02:59]}  c5 {[%clk 0:02:46]} 7. Bb2 {[%clk 0:02:59]}  d4 {[%clk 0:02:46]} 8. e3 {[%clk 0:02:59]}  Nc6 {[%clk 0:02:46]} 9. exd4 {[%clk 0:02:59]}  cxd4 {[%clk 0:02:47]} 10. Re1 {[%clk 0:02:59]}  a5 {[%clk 0:02:47]} 11. a3 {[%clk 0:02:46]}  Re8 {[%clk 0:02:44]} 12. Ne5 {[%clk 0:02:41]}  Nxe5 {[%clk 0:02:41]} 13. Rxe5 {[%clk 0:02:42]}  Bd6 {[%clk 0:02:42]} 14. Re1 {[%clk 0:02:40]}  e5 {[%clk 0:02:42]} 15. d3 {[%clk 0:02:39]}  Qc7 {[%clk 0:02:39]} 16. Nd2 {[%clk 0:02:38]}  Bf5 {[%clk 0:02:38]} 17. Qf3 {[%clk 0:02:30]}  Bg6 {[%clk 0:02:25]} 18. Qxb7 {[%clk 0:02:29]}  Qxb7 {[%clk 0:01:59]} 19. Bxb7 {[%clk 0:02:30]}  Rab8 {[%clk 0:01:59]} 20. Be4 {[%clk 0:02:11]}  Nxe4 {[%clk 0:01:52]} 21. dxe4 {[%clk 0:02:00]}  Bc5 {[%clk 0:01:39]} 22. Kg2 {[%clk 0:01:42]}  f5 {[%clk 0:01:18]} 23. exf5 {[%clk 0:01:20]}  Bxf5 {[%clk 0:01:18]} 24. f3 {[%clk 0:01:20]}  Bc2 {[%clk 0:01:15]} 25. Re2 {[%clk 0:00:41]}  Bxb3 {[%clk 0:01:07]} 26. Nxb3 {[%clk 0:00:38]}  Rxb3 {[%clk 0:01:08]} 27. Rae1 {[%clk 0:00:39]}  Reb8 {[%clk 0:00:45]} 28. Bc1 {[%clk 0:00:30]}  Bd6 {[%clk 0:00:45]} 29. c5 {[%clk 0:00:25]}  Bc7 {[%clk 0:00:44]} 30. f4 {[%clk 0:00:25]}  exf4 {[%clk 0:00:31]} 31. gxf4 {[%clk 0:00:26]}  Rc3 {[%clk 0:00:25]} 32. Bb2 {[%clk 0:00:21]}  Rd3 {[%clk 0:00:20]} 33. Re8+ {[%clk 0:00:16]}  Rxe8 {[%clk 0:00:19]} 34. Rxe8+ {[%clk 0:00:17]}  Kf7 {[%clk 0:00:20]} 35. Re2 {[%clk 0:00:14]}  Bxf4 {[%clk 0:00:20]} 36. c6 {[%clk 0:00:15]}  Bd6 {[%clk 0:00:15]} 37. Kf1 {[%clk 0:00:09]}  a4 {[%clk 0:00:14]} 38. Ke1 {[%clk 0:00:08]}  h5 {[%clk 0:00:14]} 39. Rd2 {[%clk 0:00:08]}  Rxd2 {[%clk 0:00:11]} 40. Kxd2 {[%clk 0:00:08]}  Bxh2 {[%clk 0:00:11]} 41. Bxd4 {[%clk 0:00:09]}  Bc7 {[%clk 0:00:11]} 42. Ke3 {[%clk 0:00:08]}  g5 {[%clk 0:00:11]} 43. Ke4 {[%clk 0:00:07]}  Ke6 {[%clk 0:00:11]} 44. Be3 {[%clk 0:00:06]}  g4 {[%clk 0:00:11]} 45. Bg5 {[%clk 0:00:05]}  Kd6 {[%clk 0:00:10]} 46. Kf5 {[%clk 0:00:05]}  Kxc6 {[%clk 0:00:11]} 47. Kg6 {[%clk 0:00:05]}  g3 {[%clk 0:00:11]} 48. Bh4 {[%clk 0:00:02]}  g2 {[%clk 0:00:11]} 49. Bf2 {[%clk 0:00:01]}  Bb6 {[%clk 0:00:11]} 0-1


[Site "https://www.chess.com"]